Cogmind - Beta 15 @@@ ROGUE MODE // 2025.07.30 @ 23:13:09 Player: JackNine Result: Destroyed by D-53 Grenadier with Mini Grenade Launcher Performance ------------- Evolutions (0) 0 Regions Visited (2) 400 Robots Destroyed (26) 130 Value Destroyed (468) 468 Prototype IDs (0) 0 Alien Tech Used (0) 0 Bonus (0) 0 TOTAL SCORE: 998 Bonus ------- None Cogmind --------- Core Integrity 0/250 Matter 299/300 Energy 99/100 System Corruption 0% Temperature Cool (0) Movement Rolling (115) Ox1 Location -10/Mines Parts ------- > --- POWER (1) -------- (None) > --- PROPULSION (2) --- Compact Wheel Compact Wheel > --- UTILITY (2) ------ Heat Sink High-capacity Storage Unit > --- WEAPON (2) ------- Small Laser Light Assault Rifle > --- INVENTORY (20) --- Ion Engine Compact Wheel Seismic Detector Light Assault Rifle Light Assault Rifle Rocket Launcher Peak State ------------ > --- POWER ------------ Ion Engine > --- PROPULSION ------- Light Treads Compact Wheel > --- UTILITY ---------- Heat Sink High-capacity Storage Unit > --- WEAPON ----------- Beam Cannon Assault Rifle > --- INVENTORY -------- Ion Engine Light Treads Light Treads Compact Wheel Compact Wheel Seismic Detector Small Laser Light Assault Rifle Light Assault Rifle Light Assault Rifle [Rating: 8] Favorites ----------- Power Ion Engine Engine Ion Engine Propulsion Light Treads Treads Light Treads Wheel Wheel Utility Heat Sink Device Heat Sink Storage Small Storage Unit Weapon Beam Cannon Energy Gun EM Pulse Gun Energy Cannon Beam Cannon Ballistic Gun Assault Rifle Build | -11 -10 -10 ------- Run | Yrd Mat Min Slots Evolved . | . . . Power . | . . . Propulsion . | . . . Utility . | . . . Weapon . | . . . Parts Attached 20 | 7 6 7 Power 3 | 1 1 1 Engine 3 | 1 1 1 Core . | . . . Reactor . | . . . Propulsion 7 | 2 1 4 Treads 3 | 1 . 2 Leg . | . . . Wheel 4 | 1 1 2 Hover . | . . . Flight . | . . . Utility 5 | 2 3 . Device 2 | 1 1 . Storage 3 | 1 2 . Processor . | . . . Hackware . | . . . Protection . | . . . Artifact . | . . . Weapon 5 | 2 1 2 Energy Gun 2 | 1 . 1 Energy Cannon 1 | . 1 . Ballistic Gun 2 | 1 . 1 Ballistic Cannon . | . . . Launcher . | . . . Special Weapon . | . . . Impact Weapon . | . . . Slashing Weapon . | . . . Piercing Weapon . | . . . Special Melee Weapon . | . . . Unidentified Prototypes . | . . . Parts Lost 8 | . 1 7 Power 2 | . . 2 Propulsion 3 | . . 3 Utility . | . . . Weapon 3 | . 1 2 Highest Loss Streak 6 | . 1 6 To Critical Strikes . | . . . Average Backups 7 | 2 6 8 Power . | . 1 . Propulsion 3 | 1 3 3 Utility . | . . 1 Weapon 1 | . 1 3 Tool/Special . | . . . Unused Backups 6 | . 2 4 Power 3 | . 2 1 Propulsion . | . . . Utility . | . . . Weapon 3 | . . 3 Tool/Special . | . . . Average Slot Usage (%) 98 | . 100 93 Engine 12 | . 14 10 Treads 13 | . 14 12 Wheel 13 | . 14 13 Device 14 | . 14 14 Storage 14 | . 14 14 Energy Gun 5 | . 5 3 Energy Cannon 12 | . 13 10 Ballistic Gun 10 | . 8 14 Peak Build Rating 8 | 7 7 8 Average Rating 6 | 5 6 7 On Entrance 4 | . 7 7 Naked Turns . | . . . Heaviest Build 91 | 15 91 51 Greatest Support 32 | 10 16 32 Greatest Overweight (x) 9 | 1 9 3 Average Overweight (x) 3 | . 3 2 Largest Inventory Capacity 25 | 8 25 20 Average Capacity 17 | 7 16 20 Most Carried 11 | 5 8 11 Average Carried 7 | 2 6 8 Final Capacity 20 | 8 20 20 Final Carried 7 | 5 7 6 Class Distribution -------------------- 100% | Mutant Dominant Class ---------------- Mutant | -10/Materials Mutant | -10/Mines Resources | -11 -10 -10 ----------- Run | Yrd Mat Min Matter Collected 511 | 221 173 117 Remotely . | . . . Salvage Created 802 | 89 571 142 Parts 48 | 6 31 11 Haulers Intercepted 2 | . 2 . Recyclers Shooed 1 | . 1 . Parts Field Recycled . | . . . Retrieved Matter . | . . . Parts Self-Destructed . | . . . Prevented . | . . . Kills | -11 -10 -10 ------- Run | Yrd Mat Min Combat Hostiles Destroyed 19 | . 14 5 Guns 6 | . 5 1 Cannons 11 | . 8 3 AOE 1 | . 1 . Classes Destroyed 8 | 2 6 . Worker 1 | . 1 . Builder 1 | . 1 . Tunneler 1 | 1 . . Hauler 2 | . 2 . Recycler 1 | 1 . . Operator 1 | . 1 . Swarmer 10 | . 7 3 Grunt 9 | . 7 2 Best Kill Streak 8 | 2 8 5 Combat Bots Only 6 | . 6 5 Max Kills in Single Turn 1 | 1 1 1 Gunslinging . | . . . Exploded 1 | . 1 . Melee . | . . . Uniques/NPCs Destroyed . | . . . Combat | -11 -10 -10 -------- Run | Yrd Mat Min Hostile Shots Fired 88 | . 46 42 Missed 17 | . 10 7 Hits 71 | . 36 35 Projectile 71 | . 36 35 AOE 22 | . . 22 Critical Strikes 1 | . 1 . Damage Taken 1280 | . 319 961 Core 259 | . 40 219 Absorbed by Shields . | . . . Core Remaining (%) 100 | 100 . . Volleys Fired 57 | 2 37 18 Largest 2 | 2 2 2 Hottest 100 | 60 100 80 Shots Fired 113 | 4 73 36 Gun 66 | 4 36 26 Cannon 47 | . 37 10 Launcher . | . . . Special . | . . . Kinetic 32 | 2 12 18 Thermal 55 | . 37 18 Explosive . | . . . Electromagnetic 26 | 2 24 . Robot Hit Streak 10 | 4 10 5 Robot Miss Streak 3 | . 3 3 Penetration Max . | . . . Secondary Targets . | . . . Shots Hit Robots 70 | 4 44 22 Core Hits 34 | 3 23 8 Critical Kills 1 | . . 1 Critical Parts Destroyed . | . . . Critical Strikes 1 | . . 1 Meltdown 1 | . . 1 Melee Attacks . | . . . Impact . | . . . Slashing . | . . . Piercing . | . . . Sneak Attacks . | . . . Combat Hostiles . | . . . Follow-up Attacks . | . . . Damage Inflicted 1154 | 54 803 297 Guns 511 | 54 303 154 Cannons 561 | . 418 143 Explosions 82 | . 82 . Melee . | . . . Ramming . | . . . Kinetic 227 | 28 90 109 Thermal 688 | . 500 188 Explosive . | . . . Electromagnetic 239 | 26 213 . Impact . | . . . Slashing . | . . . Piercing . | . . . Highest Corruption . | . . . Average Corruption . | . . . Corruption Purged . | . . . Corruption Blocked . | . . . Overload Shots . | . . . Overflow Damage 32 | . 17 15 Projectiles 15 | . . 15 Explosions 17 | . 17 . Melee . | . . . Knockbacks . | . . . Impact . | . . . Kinetic . | . . . Secondary . | . . . Self-Inflicted Damage . | . . . Shots . | . . . Rammed . | . . . Targets Rammed . | . . . Kicked . | . . . Crushed . | . . . Highest Temperature 108 | . 108 6 Average Temperature 29 | . 31 4 Received Heat Transfer 126 | . 90 36 Siege Activations . | . . . Martial Activations . | . . . Shielding Activations . | . . . Robots Disrupted . | . . . Combat Hostiles . | . . . Robots Corrupted . | . . . Combat Hostiles . | . . . Parts Fried . | . . . Impact Corruptions . | . . . Robots Melted 1 | . . 1 Combat Hostiles 1 | . . 1 Parts Melted 4 | . 1 3 Heat Transferred 1347 | . 951 396 Parts Sabotaged . | . . . Parts Stolen . | . . . Parts Stripped . | . . . Power Chain Reactions 1 | . 1 . Alert | -11 -10 -10 ------- Run | Yrd Mat Min Maximum Alert Level 1 | . 1 . Low Security (%) 53 | 100 28 100 Level 1 46 | . 71 . Level 2 . | . . . Level 3 . | . . . Level 4 . | . . . Level 5 . | . . . High Security . | . . . Max Security . | . . . Peak Influence 330 | 5 330 175 Initial 85 | . . 85 Average 178 | 1 227 102 Influence Increases 654 | 10 524 120 Destroy 0b10 Robot/C 380 | . 280 100 Destroy 0b10 Robot/NC 35 | 10 25 . Destroy Leader 74 | . 54 20 Successful Hack 10 | . 10 . Select Force Hacks 60 | . 60 . Disable Machine 15 | . 15 . Destroy Structure 5 | . 5 . Lose Combat Pursuer 75 | . 75 . Influence Decreases 654 | 10 304 340 Entered New Map 135 | . . 135 Time Decay 439 | 10 294 135 Lost Part 80 | . 10 70 Squads Dispatched 4 | . 4 . Investigation 3 | . 3 . Extermination . | . . . Reinforcement 1 | . 1 . Assault . | . . . Garrison . | . . . Intercept . | . . . Searches Triggered . | . . . Construction Impeded . | . . . Haulers Reinforced . | . . . Active Scanning Responses . | . . . Cargo Convoy Interrupts . | . . . Stealth | -11 -10 -10 --------- Run | Yrd Mat Min Distress Signals 3 | . 3 . Communications Jammed . | . . . Distress Signals . | . . . Times Spotted 35 | . 24 11 Peak Tracking Total 5 | . 5 3 Tactical Retreats 2 | . 2 . Traps | -11 -10 -10 ------- Run | Yrd Mat Min Traps Triggered 1 | . 1 . Indirectly . | . . . Trap Hack Attempts . | . . . Triggered . | . . . Disarmed . | . . . Reprogrammed . | . . . Reused . | . . . Traps Extracted . | . . . Installed . | . . . Triggered . | . . . Machines | -11 -10 -10 ---------- Run | Yrd Mat Min Machines Disabled 1 | . 1 . Max in Single Turn 1 | . 1 . Machines Repaired . | . . . Machines Dismantled . | . . . Machines Sabotaged . | . . . Overloaded Fab Kills . | . . . Hacking | -11 -10 -10 --------- Run | Yrd Mat Min Machines Accessed 7 | . 7 . Terminals 5 | . 5 . Fabricators . | . . . Repair Stations . | . . . Recycling Units 2 | . 2 . Scanalyzers . | . . . Garrison Access . | . . . Total Hacks 17 | . 17 . Successful 7 | . 7 . Failed 9 | . 9 . Catastrophic 2 | . 2 . Database Lockouts 1 | . 1 . Manual 11 | . 11 . Terminals 13 | . 13 . Fabricators . | . . . Repair Stations . | . . . Recycling Units 4 | . 4 . Scanalyzers . | . . . Garrison Access . | . . . Terminal Hacks 4 | . 4 . Robot Analysis 2 | . 2 . Locate Traps 1 | . 1 . Hauler Manifests 1 | . 1 . Fabricator Hacks . | . . . Repair Station Hacks . | . . . Recycling Unit Hacks . | . . . Scanalyzer . | . . . Garrison Access Hacks . | . . . Unauthorized Hacks 3 | . 3 . Terminals 1 | . 1 . Disrupt 1 | . 1 . Fabricators . | . . . Repair Stations . | . . . Recycling Units 2 | . 2 . Tunnel 2 | . 2 . Scanalyzers . | . . . Garrison Access . | . . . Data Cores Recovered 1 | . 1 . Used 1 | . 1 . Hacking Detections 5 | . 5 . Full Trace Events . | . . . Feedback Events . | . . . Feedback Blocked . | . . . Robot Schematics Acquired . | . . . Robots Built . | . . . Authchips . | . . . Time . | . . . Total Robot Build Rating . | . . . Part Schematics Acquired . | . . . Parts Built . | . . . Authchips . | . . . Time . | . . . Total Part Build Rating . | . . . Parts Repaired . | . . . Time . | . . . Parts Recycled . | . . . Recycled Matter . | . . . Retrieved Matter . | . . . Retrieved Components . | . . . Parts Scanalyzed . | . . . Part Schematics Acquired . | . . . Parts Damaged . | . . . Bothacking | -11 -10 -10 ------------ Run | Yrd Mat Min Used RIF Installer . | . . . Robots Hacked . | . . . Non-combat . | . . . Combat . | . . . Robot Hacks Applied . | . . . Relay Couplers Released . | . . . Fabnet Peak Effective % . | . . . Robots Rewired . | . . . Allies Hacked . | . . . Hacks Repelled . | . . . Allies | -11 -10 -10 -------- Run | Yrd Mat Min Total Allies . | . . . Largest Group . | . . . Highest-Rated Group . | . . . Highest-Rated Ally . | . . . Total Orders . | . . . Ally Attacks . | . . . Total Damage . | . . . Kills . | . . . Allies Corrupted . | . . . Allies Melted 1 | . . 1 Intel | -11 -10 -10 ------- Run | Yrd Mat Min Active Infowar (turns) 224 | 17 207 . Seismic 224 | 17 207 . Robot Analysis Total 2 | . 2 . Derelict Logs Recovered 1 | . . 1 Drone Launches . | . . . Drone Recoveries . | . . . Exploration | -11 -10 -10 ------------- Run | Yrd Mat Min Turns Passed 1007 | 61 658 288 Spaces Moved 555 | 43 357 155 Core 2 | 2 . . Treads . | . . . Legs . | . . . Wheels 553 | 41 357 155 Hover . | . . . Flight . | . . . Fastest Speed 50 | 50 95 115 Average Speed 134 | 89 137 139 Slowest Speed 215 | 95 215 145 Overloaded Moves . | . . . Propulsion Burnouts . | . . . Robots Hopped . | . . . Potential Cave-ins . | . . . Cave-ins Triggered . | . . . Exploration Rate (%) 37 | 3 76 34 Regions Visited 2 Branch Regions 1 Pre-discovered Areas 2 | . 2 . Known Exits Taken . | . . . Unknown Exits Taken 2 | 1 1 . Scrap Searched 2 | . . 2 Spaces Dug . | . . . Terrain Destroyed 2 | . 2 . Melee . | . . . Projectile . | . . . AOE 2 | . 2 . Terrain Rammed . | . . . Walls Destroyed . | . . . Machines Disabled . | . . . Actions | -11 -10 -10 --------- Run | Yrd Mat Min Total 695 | 57 447 191 Wait 36 | 1 29 6 Move 553 | 42 356 155 Hop . | . . . Pick Up 15 | 5 5 5 Fast Attach 8 | 7 1 . Attach 7 | . 1 6 Detach 1 | . 1 . Swap 12 | . 11 1 Drop 6 | . 6 . Fire 57 | 2 37 18 Melee . | . . . Ram . | . . . Kick . | . . . Crush . | . . . Escape Stasis . | . . . Rewire . | . . . Trap . | . . . Miscellaneous . | . . . Route ------- -11/Scrapyard -10/Materials (discovered 2 exits: [*Min] / [*Sub]) -10/Mines History --------- Turn | Location | Event 23 | -11/Scrapyard | Discovered new exit (range 15) 62 | -11/Scrapyard | Entered Materials 95 | -10/Materials | Central database locked down 303 | -10/Materials | Build established: Mutant 310 | -10/Materials | Discovered new exit (range 12) 591 | -10/Materials | Discovered new exit (range 10) 662 | -10/Materials | Derelicts attacked the area 720 | -10/Materials | Entered Mines 723 | -10/Mines | Met a Derelict bent on vengeance 787 | -10/Mines | Learned 2 Materials zone layouts 840 | -10/Mines | Received a Rocket Launcher from a helpful Derelict 900 | -10/Mines | Assembled infested the area 905 | -10/Mines | Assisted by a Guerilla fighting off Assembled 947 | -10/Mines | Core integrity fell below 50% 972 | -10/Mines | Core integrity fell below 20% 975 | -10/Mines | Lost 6 parts (1p3n2w) 1008 | -10/Mines | Destroyed by D-53 Grenadier with Mini Grenade Launcher Last Messages --------------- 00955_ The unstable cave ceiling collapses. 00957_ D-53 Grenadier knocked back. 00958_ K-01 Serf collects debris. 00959_ The unstable cave ceiling collapses. 00959_ as-04439 destroyed. 00959_ K-01 Serf destroyed. 00961_ The unstable cave ceiling collapses. 00973_ U-05 Engineer builds a Wall. 00977_ U-05 Engineer lays Concrete. 00977_ as-72254 suffers critical hit (Burn). 00977_ as-72254 destroyed. 00978_ XR-3AN(g) heat damages Lgt. Angular Momentum Engine. 00978_ U-05 Engineer lays Concrete. 00979_ XR-3AN(g) critical meltdown. 00979_ U-05 Engineer lays Concrete. 00989_ as-07562 destroyed. 00989_ T-07 Excavator destroyed. 00989_ U-05 Engineer destroyed. 01000_ Acquired 39 matter. 01006_ K-01 Serf collects debris. Map ----- +----------------------------------------------------+ | ??????????????????????????????????????????????? | | ??????????????????????????????????????????????? | | ??????????????????????????????????????????????? | | ??????????????????????????????????????????????? | | ??????????????????????????????????????????????? | | ??????????????????????????????????????????????? | | ??????????????????????????????????????????????? | | ??????????????????????????????????????????????? | | ????????????##???????????????????????????????? | | ????????????# ???????????????????????????????? | | ??????????## ????????????????????????????????? | | ??????????# ????????????????????????????????? | | ?????????? % ??????????????#?????????????????? | | #????????# %#?????????????? ????????????????? | | #????????## ##????????????? ????????????????? | | ?????????# # #??#####????? #????????????????? | | ?????????# ### ##??? #????????????????? | | ?????????# % #??? #????????????????? | | ?????????## |%%= #??? #????????????????? | | #??####### # #??? #????????????????? | | #### # ##?## #??? #????????????????? | | # # ##???## ##??? #????????????????? | | #?????#### #??##% ##???????????????? | | #????????# #??# #???????????????? | | # #????????# #?## #???????????????? | | ####### # #????????# ###@ #???????????????? | | ??????######????????# d k ##???????????????? | | ????????????????????## ## % #????????????????? | | ?????????????????????# ## #????????????????? | | ?????????????????????# ### ##????????????????? | | ?????????????????????# #?####?????????????????? | | ?????????????????????# #??????????????????????? | | ?????????????????????# #??????????????????????? | | ?????????????????????# #??????????????????????? | | ?????????????????????# #??????????????????????? | | ?????????????????????? #??????????????????????? | | ?????????????????????? ???????????????????????? | | ??????????????????????#???????????????????????? | | ??????????????????????????????????????????????? | | ??????????????????????????????????????????????? | | ??????????????????????????????????????????????? | | ??????????????????????????????????????????????? | | ??????????????????????????????????????????????? | | ??????????????????????????????????????????????? | | ??????????????????????????????????????????????? | | ??????????????????????????????????????????????? | | #?????????????????????????????????????????????? | | #?????????????????????????????????????????????? | | #?????????????????????????????????????????????? | | #?????????????????????????????????????????????? | +----------------------------------------------------+ Best States ------------- Heat Dissipation 35 Energy Generation 10 Energy Capacity 250 Matter Stores 300 Matter Capacity 300 Sight Range 16 Terrain Scan Density 10 Evasion (%) 44 Recoil Reduction 2 Item Schematics ----------------- None Robot Schematics ------------------ None Fabricated ------------ Nothing Repaired ---------- Nothing Alien Tech Used ----------------- None Achievements -------------- None Challenges ------------ None Game ------ Seed SensorProjectileNanosword Manual? 0 Play Time 00:14:46 Cumulative 376.1 hours Start 2025.07.30 @ 22:59:02 End 2025.07.30 @ 23:13:09 Sessions 1 Manual Loads 0 Difficulty Rogue Special Mode None Game No. 191 Rogue 191 Adventurer 0 Explorer 0 Win Type - Total 12 Types 7/0/3/0/0/0/2/0/0/0 Lore% 61 Gallery% 77 Achievement% 79 Wizard Run 0 Options --------- Layout 2 ASCII 0 Keyboard 1 Movement Numpad Keybinds 0 Fullscreen 2 Font 18/SmallcapsGlow Map View 38x29 Zoom Use 98% Tactical HUD 1 Map Filters NONE Filters NONE Steam 1 RUN: 9ec8256f-ff52-44f8-89cb-a64e3d39b52d